[Event "Titled Tuesday Blitz August 16 Early 2022"]
[White "Ramirez Vido, Robert Yorisan"]
[Black "Simonovic, Miroslav"]
[WhiteFideId "3513823"]
[BlackFideId "919152"]
[WhiteElo "2090"]
[BlackElo "2043"]
[Result "1-0"]
[Round "02"]
[TimeControl "180+2"]
[Date "2022.08.18"]
[WhiteClock "0:00:00"]
[BlackClock "0:00:00"]

1. Nf3 {[%clk 0:00:00]}  c5 {[%clk 0:00:00]} 2. g3 {[%clk 0:00:00]}  Nc6 {[%clk 0:00:00]} 3. Bg2 {[%clk 0:00:00]}  g6 {[%clk 0:00:00]} 4. O-O {[%clk 0:00:00]}  Bg7 {[%clk 0:00:00]} 5. d3 {[%clk 0:00:00]}  e5 {[%clk 0:00:00]} 6. e4 {[%clk 0:00:00]}  Nge7 {[%clk 0:00:00]} 7. a3 {[%clk 0:00:00]}  a5 {[%clk 0:00:00]} 8. c3 {[%clk 0:00:00]}  O-O {[%clk 0:00:00]} 9. Nbd2 {[%clk 0:00:00]}  d5 {[%clk 0:00:00]} 10. Re1 {[%clk 0:00:00]}  h6 {[%clk 0:00:00]} 11. a4 {[%clk 0:00:00]}  Be6 {[%clk 0:00:00]} 12. Qc2 {[%clk 0:00:00]}  Qd7 {[%clk 0:00:00]} 13. exd5 {[%clk 0:00:00]}  Bxd5 {[%clk 0:00:00]} 14. Nc4 {[%clk 0:00:00]}  Bxc4 {[%clk 0:00:00]} 15. dxc4 {[%clk 0:00:00]}  b6 {[%clk 0:00:00]} 16. Be3 {[%clk 0:00:00]}  Rad8 {[%clk 0:00:00]} 17. Rad1 {[%clk 0:00:00]}  Qe6 {[%clk 0:00:00]} 18. b3 {[%clk 0:00:00]}  f5 {[%clk 0:00:00]} 19. Rxd8 {[%clk 0:00:00]}  Rxd8 {[%clk 0:00:00]} 20. Rd1 {[%clk 0:00:00]}  Rxd1+ {[%clk 0:00:00]} 21. Qxd1 {[%clk 0:00:00]}  e4 {[%clk 0:00:00]} 22. Ne1 {[%clk 0:00:00]}  g5 {[%clk 0:00:00]} 23. Qd2 {[%clk 0:00:00]}  Bf6 {[%clk 0:00:00]} 24. Bh3 {[%clk 0:00:00]}  Kg7 {[%clk 0:00:00]} 25. Nc2 {[%clk 0:00:00]}  Qe5 {[%clk 0:00:00]} 26. Qd7 {[%clk 0:00:00]}  Qxc3 {[%clk 0:00:00]} 27. Na3 {[%clk 0:00:00]}  Qa1+ {[%clk 0:00:00]} 28. Kg2 {[%clk 0:00:00]}  Qxa3 {[%clk 0:00:00]} 29. Bxf5 {[%clk 0:00:00]}  Qxb3 {[%clk 0:00:00]} 30. Bxe4 {[%clk 0:00:00]}  Qxa4 {[%clk 0:00:00]} 31. h4 {[%clk 0:00:00]}  Ne5 {[%clk 0:00:00]} 32. Qxa4 {[%clk 0:00:00]}  gxh4 {[%clk 0:00:00]} 33. gxh4 {[%clk 0:00:00]}  Bxh4 {[%clk 0:00:00]} 34. Qa1 {[%clk 0:00:00]}  Bf6 {[%clk 0:00:00]} 35. Qc1 {[%clk 0:00:00]}  h5 {[%clk 0:00:00]} 36. Bh6+ {[%clk 0:00:00]}  Kf7 {[%clk 0:00:00]} 37. Bg5 {[%clk 0:00:00]}  Ke6 {[%clk 0:00:00]} 38. Bxf6 {[%clk 0:00:00]}  Kxf6 {[%clk 0:00:00]} 39. f4 {[%clk 0:00:00]}  Ng4 {[%clk 0:00:00]} 40. Bf3 {[%clk 0:00:00]}  Nh6 {[%clk 0:00:00]} 41. Qb2+ {[%clk 0:00:00]}  Kf7 {[%clk 0:00:00]} 42. Qxb6 {[%clk 0:00:00]}  a4 {[%clk 0:00:00]} 43. Qxh6 {[%clk 0:00:00]}  a3 {[%clk 0:00:00]} 44. Qxh5+ {[%clk 0:00:00]}  Ke6 {[%clk 0:00:00]} 45. Qe5+ {[%clk 0:00:00]}  Kd7 {[%clk 0:00:00]} 46. Bg4+ {[%clk 0:00:00]}  Kc6 {[%clk 0:00:00]} 47. Qxe7 {[%clk 0:00:00]}  a2 {[%clk 0:00:00]} 48. Qf6+ {[%clk 0:00:00]}  Kb7 {[%clk 0:00:00]} 49. Qa1 {[%clk 0:00:00]}  Kb6 {[%clk 0:00:00]} 50. Qxa2 {[%clk 0:00:00]} 1-0


[Site "https://www.chess.com"]

[Event "Titled Tuesday Blitz August 16 Early 2022"]
[White "Rose, Felix"]
[Black "Khusenkhojaev, Muhammad"]
[WhiteFideId "5105722"]
[BlackFideId "14700247"]
[WhiteElo "2039"]
[BlackElo "2180"]
[Result "0-1"]
[Round "02"]
[TimeControl "180+2"]
[Date "2022.08.18"]
[WhiteClock "0:00:00"]
[BlackClock "0:00:00"]

1. e4 {[%clk 0:00:00]}  e6 {[%clk 0:00:00]} 2. d4 {[%clk 0:00:00]}  d5 {[%clk 0:00:00]} 3. Nc3 {[%clk 0:00:00]}  Nf6 {[%clk 0:00:00]} 4. e5 {[%clk 0:00:00]}  Nfd7 {[%clk 0:00:00]} 5. f4 {[%clk 0:00:00]}  c5 {[%clk 0:00:00]} 6. Nf3 {[%clk 0:00:00]}  Nc6 {[%clk 0:00:00]} 7. Be3 {[%clk 0:00:00]}  a6 {[%clk 0:00:00]} 8. Qd2 {[%clk 0:00:00]}  b5 {[%clk 0:00:00]} 9. dxc5 {[%clk 0:00:00]}  Bxc5 {[%clk 0:00:00]} 10. Bd3 {[%clk 0:00:00]}  Qb6 {[%clk 0:00:00]} 11. Bf2 {[%clk 0:00:00]}  O-O {[%clk 0:00:00]} 12. O-O {[%clk 0:00:00]}  h6 {[%clk 0:00:00]} 13. Bxc5 {[%clk 0:00:00]}  Nxc5 {[%clk 0:00:00]} 14. Qf2 {[%clk 0:00:00]}  b4 {[%clk 0:00:00]} 15. Ne2 {[%clk 0:00:00]}  a5 {[%clk 0:00:00]} 16. Ned4 {[%clk 0:00:00]}  Ba6 {[%clk 0:00:00]} 17. Bxa6 {[%clk 0:00:00]}  Rxa6 {[%clk 0:00:00]} 18. Nxc6 {[%clk 0:00:00]}  Qxc6 {[%clk 0:00:00]} 19. Nd4 {[%clk 0:00:00]}  Qc7 {[%clk 0:00:00]} 20. Rae1 {[%clk 0:00:00]}  Ne4 {[%clk 0:00:00]} 21. Qe3 {[%clk 0:00:00]}  a4 {[%clk 0:00:00]} 22. h3 {[%clk 0:00:00]}  a3 {[%clk 0:00:00]} 23. b3 {[%clk 0:00:00]}  Ra5 {[%clk 0:00:00]} 24. Rf3 {[%clk 0:00:00]}  Rc5 {[%clk 0:00:00]} 25. Kh2 {[%clk 0:00:00]}  Rc3 {[%clk 0:00:00]} 26. Qe2 {[%clk 0:00:00]}  Qc5 {[%clk 0:00:00]} 27. Rd3 {[%clk 0:00:00]}  Rxd3 {[%clk 0:00:00]} 28. Qxd3 {[%clk 0:00:00]}  Qc3 {[%clk 0:00:00]} 29. Qxc3 {[%clk 0:00:00]}  Nxc3 {[%clk 0:00:00]} 30. Ra1 {[%clk 0:00:00]}  Rc8 {[%clk 0:00:00]} 31. Kg3 {[%clk 0:00:00]}  g5 {[%clk 0:00:00]} 32. fxg5 {[%clk 0:00:00]}  hxg5 {[%clk 0:00:00]} 33. Kg4 {[%clk 0:00:00]}  Ne4 {[%clk 0:00:00]} 34. Rf1 {[%clk 0:00:00]}  Kg7 {[%clk 0:00:00]} 35. Ra1 {[%clk 0:00:00]}  Kg6 {[%clk 0:00:00]} 36. Kf3 {[%clk 0:00:00]}  Rc3+ {[%clk 0:00:00]} 37. Ke2 {[%clk 0:00:00]}  f6 {[%clk 0:00:00]} 38. exf6 {[%clk 0:00:00]}  e5 {[%clk 0:00:00]} 39. Nf3 {[%clk 0:00:00]}  Rxc2+ {[%clk 0:00:00]} 40. Kd1 {[%clk 0:00:00]}  Rxg2 {[%clk 0:00:00]} 41. Nxe5+ {[%clk 0:00:00]}  Kxf6 {[%clk 0:00:00]} 42. Ng4+ {[%clk 0:00:00]}  Ke6 {[%clk 0:00:00]} 43. Rc1 {[%clk 0:00:00]}  Nc3+ {[%clk 0:00:00]} 44. Ke1 {[%clk 0:00:00]}  Rxa2 {[%clk 0:00:00]} 45. Kf1 {[%clk 0:00:00]}  Rb2 {[%clk 0:00:00]} 46. Re1+ {[%clk 0:00:00]}  Kd6 {[%clk 0:00:00]} 47. Ne3 {[%clk 0:00:00]}  a2 {[%clk 0:00:00]} 48. Nf5+ {[%clk 0:00:00]}  Kc5 {[%clk 0:00:00]} 0-1


[Site "https://www.chess.com"]

[Event "Titled Tuesday Blitz August 16 Early 2022"]
[White "Samadov, Read"]
[Black "Levitskiy, Andrey"]
[WhiteFideId "13417444"]
[BlackFideId "14132885"]
[WhiteElo "2084"]
[BlackElo "2293"]
[Result "1/2-1/2"]
[Round "02"]
[TimeControl "180+1"]
[Date "2022.08.16"]
[WhiteClock "0:00:08"]
[BlackClock "0:00:11"]

1. d4 {[%clk 0:03:00]}  Nf6 {[%clk 0:02:59]} 2. c4 {[%clk 0:03:00]}  e6 {[%clk 0:03:00]} 3. Nf3 {[%clk 0:03:00]}  Bb4+ {[%clk 0:03:00]} 4. Nc3 {[%clk 0:02:58]}  d6 {[%clk 0:02:52]} 5. Bd2 {[%clk 0:02:56]}  O-O {[%clk 0:02:48]} 6. a3 {[%clk 0:02:55]}  Bxc3 {[%clk 0:02:47]} 7. Bxc3 {[%clk 0:02:56]}  Ne4 {[%clk 0:02:46]} 8. Rc1 {[%clk 0:02:55]}  b6 {[%clk 0:02:36]} 9. e3 {[%clk 0:02:55]}  Bb7 {[%clk 0:02:35]} 10. Be2 {[%clk 0:02:54]}  Nd7 {[%clk 0:02:28]} 11. O-O {[%clk 0:02:52]}  Nxc3 {[%clk 0:02:28]} 12. Rxc3 {[%clk 0:02:52]}  a5 {[%clk 0:02:27]} 13. Qc2 {[%clk 0:02:46]}  Qe7 {[%clk 0:02:16]} 14. Bd3 {[%clk 0:02:31]}  f5 {[%clk 0:02:03]} 15. e4 {[%clk 0:02:28]}  e5 {[%clk 0:01:50]} 16. dxe5 {[%clk 0:02:19]}  dxe5 {[%clk 0:01:43]} 17. Qe2 {[%clk 0:01:43]}  f4 {[%clk 0:01:08]} 18. Bc2 {[%clk 0:01:36]}  a4 {[%clk 0:01:07]} 19. Rd1 {[%clk 0:01:33]}  Nc5 {[%clk 0:01:07]} 20. h3 {[%clk 0:01:25]}  Bc6 {[%clk 0:01:06]} 21. Bb1 {[%clk 0:01:18]}  Rad8 {[%clk 0:01:04]} 22. Rcc1 {[%clk 0:01:16]}  Nb3 {[%clk 0:00:56]} 23. Rxd8 {[%clk 0:01:12]}  Rxd8 {[%clk 0:00:56]} 24. Rd1 {[%clk 0:01:13]}  Rxd1+ {[%clk 0:00:48]} 25. Qxd1 {[%clk 0:01:13]}  Nc5 {[%clk 0:00:49]} 26. Qe1 {[%clk 0:01:10]}  Qd6 {[%clk 0:00:42]} 27. Bc2 {[%clk 0:01:10]}  Ne6 {[%clk 0:00:18]} 28. Qc3 {[%clk 0:01:05]}  Nd4 {[%clk 0:00:18]} 29. Nxd4 {[%clk 0:01:05]}  Qxd4 {[%clk 0:00:19]} 30. Qb4 {[%clk 0:00:48]}  Bxe4 {[%clk 0:00:13]} 31. Qxa4 {[%clk 0:00:37]}  h6 {[%clk 0:00:07]} 32. Qb3 {[%clk 0:00:20]}  Bxc2 {[%clk 0:00:05]} 33. Qxc2 {[%clk 0:00:21]}  c5 {[%clk 0:00:04]} 34. Kf1 {[%clk 0:00:19]}  e4 {[%clk 0:00:05]} 35. Ke2 {[%clk 0:00:18]}  g5 {[%clk 0:00:05]} 36. f3 {[%clk 0:00:13]}  Qe3+ {[%clk 0:00:05]} 37. Kf1 {[%clk 0:00:13]}  exf3 {[%clk 0:00:05]} 38. Qg6+ {[%clk 0:00:13]}  Kf8 {[%clk 0:00:05]} 39. Qxh6+ {[%clk 0:00:14]}  Ke8 {[%clk 0:00:06]} 40. Qc6+ {[%clk 0:00:13]}  Kf8 {[%clk 0:00:04]} 41. Qxf3 {[%clk 0:00:11]}  Qc1+ {[%clk 0:00:04]} 42. Kf2 {[%clk 0:00:10]}  Qxb2+ {[%clk 0:00:05]} 43. Kg1 {[%clk 0:00:11]}  Qd4+ {[%clk 0:00:05]} 44. Kh2 {[%clk 0:00:11]}  Qxc4 {[%clk 0:00:06]} 45. Qa8+ {[%clk 0:00:11]}  Kg7 {[%clk 0:00:06]} 46. Qb7+ {[%clk 0:00:11]}  Qf7 {[%clk 0:00:05]} 47. Qxb6 {[%clk 0:00:11]}  Qe7 {[%clk 0:00:06]} 48. a4 {[%clk 0:00:08]}  f3 {[%clk 0:00:06]} 49. gxf3 {[%clk 0:00:08]}  Qe2+ {[%clk 0:00:07]} 50. Kg3 {[%clk 0:00:08]}  Qe5+ {[%clk 0:00:07]} 51. Kf2 {[%clk 0:00:08]}  Qd4+ {[%clk 0:00:07]} 52. Ke2 {[%clk 0:00:08]}  Qc4+ {[%clk 0:00:08]} 53. Kd2 {[%clk 0:00:08]}  Qd4+ {[%clk 0:00:08]} 54. Ke1 {[%clk 0:00:08]}  Qe3+ {[%clk 0:00:08]} 55. Kd1 {[%clk 0:00:08]}  Qxf3+ {[%clk 0:00:09]} 56. Kc2 {[%clk 0:00:09]}  Qe4+ {[%clk 0:00:09]} 57. Kc1 {[%clk 0:00:06]}  Qe3+ {[%clk 0:00:09]} 58. Kc2 {[%clk 0:00:06]}  Qe4+ {[%clk 0:00:09]} 59. Kd2 {[%clk 0:00:07]}  Qd4+ {[%clk 0:00:09]} 60. Ke2 {[%clk 0:00:06]}  Qe4+ {[%clk 0:00:09]} 61. Kf2 {[%clk 0:00:07]}  Qf4+ {[%clk 0:00:09]} 62. Kg2 {[%clk 0:00:07]}  Qe4+ {[%clk 0:00:10]} 63. Kf2 {[%clk 0:00:07]}  Qf4+ {[%clk 0:00:10]} 64. Ke2 {[%clk 0:00:08]}  Qe4+ {[%clk 0:00:11]} 65. Kf2 {[%clk 0:00:08]} 1/2-1/2


[Site "https://www.chess.com"]

[Event "Titled Tuesday Blitz August 16 Early 2022"]
[White "Samunenkov, Ihor"]
[Black "Janaszak, Dawid"]
[WhiteFideId "14187086"]
[BlackFideId "1119206"]
[WhiteElo "2441"]
[BlackElo "2165"]
[Result "0-1"]
[Round "02"]
[TimeControl "180+2"]
[Date "2022.08.18"]
[WhiteClock "0:00:00"]
[BlackClock "0:00:00"]

1. e4 {[%clk 0:00:00]}  c5 {[%clk 0:00:00]} 2. Nf3 {[%clk 0:00:00]}  Nc6 {[%clk 0:00:00]} 3. d4 {[%clk 0:00:00]}  cxd4 {[%clk 0:00:00]} 4. Nxd4 {[%clk 0:00:00]}  Qb6 {[%clk 0:00:00]} 5. Nb3 {[%clk 0:00:00]}  Nf6 {[%clk 0:00:00]} 6. Nc3 {[%clk 0:00:00]}  e6 {[%clk 0:00:00]} 7. Be3 {[%clk 0:00:00]}  Qc7 {[%clk 0:00:00]} 8. a3 {[%clk 0:00:00]}  a6 {[%clk 0:00:00]} 9. g4 {[%clk 0:00:00]}  d6 {[%clk 0:00:00]} 10. f4 {[%clk 0:00:00]}  h5 {[%clk 0:00:00]} 11. g5 {[%clk 0:00:00]}  Nd7 {[%clk 0:00:00]} 12. h4 {[%clk 0:00:00]}  b5 {[%clk 0:00:00]} 13. Qe2 {[%clk 0:00:00]}  Bb7 {[%clk 0:00:00]} 14. O-O-O {[%clk 0:00:00]}  g6 {[%clk 0:00:00]} 15. f5 {[%clk 0:00:00]}  Nde5 {[%clk 0:00:00]} 16. Bh3 {[%clk 0:00:00]}  Bc8 {[%clk 0:00:00]} 17. Rhf1 {[%clk 0:00:00]}  b4 {[%clk 0:00:00]} 18. axb4 {[%clk 0:00:00]}  Nxb4 {[%clk 0:00:00]} 19. fxe6 {[%clk 0:00:00]}  fxe6 {[%clk 0:00:00]} 20. Nd4 {[%clk 0:00:00]}  Ng4 {[%clk 0:00:00]} 21. Bxg4 {[%clk 0:00:00]}  hxg4 {[%clk 0:00:00]} 22. e5 {[%clk 0:00:00]}  dxe5 {[%clk 0:00:00]} 23. Ne4 {[%clk 0:00:00]}  Be7 {[%clk 0:00:00]} 24. Nb3 {[%clk 0:00:00]}  Bb7 {[%clk 0:00:00]} 25. Bc5 {[%clk 0:00:00]}  Nd5 {[%clk 0:00:00]} 26. Qxg4 {[%clk 0:00:00]}  O-O-O {[%clk 0:00:00]} 27. Qxe6+ {[%clk 0:00:00]}  Kb8 {[%clk 0:00:00]} 28. Qxg6 {[%clk 0:00:00]}  Bxc5 {[%clk 0:00:00]} 29. Nbxc5 {[%clk 0:00:00]}  Ne3 {[%clk 0:00:00]} 30. Rxd8+ {[%clk 0:00:00]}  Rxd8 {[%clk 0:00:00]} 31. Re1 {[%clk 0:00:00]}  Qa5 {[%clk 0:00:00]} 32. Nd3 {[%clk 0:00:00]}  Rxd3 {[%clk 0:00:00]} 33. Qe8+ {[%clk 0:00:00]}  Ka7 {[%clk 0:00:00]} 34. Kb1 {[%clk 0:00:00]}  Qxe1+ {[%clk 0:00:00]} 0-1


[Site "https://www.chess.com"]

[Event "Titled Tuesday Blitz August 16 Early 2022"]
[White "Sanchez, Robert"]
[Black "Lehtosaari, Mauri"]
[WhiteFideId "2034360"]
[BlackFideId "501999"]
[WhiteElo "1966"]
[BlackElo "2200"]
[Result "0-1"]
[Round "02"]
[TimeControl "180+2"]
[Date "2022.08.18"]
[WhiteClock "0:00:00"]
[BlackClock "0:00:00"]

1. Nf3 {[%clk 0:00:00]}  d5 {[%clk 0:00:00]} 2. e3 {[%clk 0:00:00]}  Nf6 {[%clk 0:00:00]} 3. c4 {[%clk 0:00:00]}  c6 {[%clk 0:00:00]} 4. b3 {[%clk 0:00:00]}  a6 {[%clk 0:00:00]} 5. Bb2 {[%clk 0:00:00]}  Bg4 {[%clk 0:00:00]} 6. Be2 {[%clk 0:00:00]}  e6 {[%clk 0:00:00]} 7. O-O {[%clk 0:00:00]}  Nbd7 {[%clk 0:00:00]} 8. d3 {[%clk 0:00:00]}  Bd6 {[%clk 0:00:00]} 9. h3 {[%clk 0:00:00]}  Bh5 {[%clk 0:00:00]} 10. Nc3 {[%clk 0:00:00]}  O-O {[%clk 0:00:00]} 11. Rc1 {[%clk 0:00:00]}  b5 {[%clk 0:00:00]} 12. cxd5 {[%clk 0:00:00]}  cxd5 {[%clk 0:00:00]} 13. a3 {[%clk 0:00:00]}  Qb6 {[%clk 0:00:00]} 14. Na2 {[%clk 0:00:00]}  Rac8 {[%clk 0:00:00]} 15. Qd2 {[%clk 0:00:00]}  Rfd8 {[%clk 0:00:00]} 16. b4 {[%clk 0:00:00]}  Qa7 {[%clk 0:00:00]} 17. Bd4 {[%clk 0:00:00]}  Qb8 {[%clk 0:00:00]} 18. Bb2 {[%clk 0:00:00]}  e5 {[%clk 0:00:00]} 19. Nh4 {[%clk 0:00:00]}  Bxe2 {[%clk 0:00:00]} 20. Qxe2 {[%clk 0:00:00]}  g6 {[%clk 0:00:00]} 21. g3 {[%clk 0:00:00]}  Rxc1 {[%clk 0:00:00]} 22. Nxc1 {[%clk 0:00:00]}  Qa7 {[%clk 0:00:00]} 23. Nb3 {[%clk 0:00:00]}  Rc8 {[%clk 0:00:00]} 24. Qd2 {[%clk 0:00:00]}  Rc6 {[%clk 0:00:00]} 25. Na5 {[%clk 0:00:00]}  Rc7 {[%clk 0:00:00]} 26. Rc1 {[%clk 0:00:00]}  Qb8 {[%clk 0:00:00]} 27. f4 {[%clk 0:00:00]}  Rxc1+ {[%clk 0:00:00]} 28. Qxc1 {[%clk 0:00:00]}  Qc7 {[%clk 0:00:00]} 29. Qd2 {[%clk 0:00:00]}  Nh5 {[%clk 0:00:00]} 30. Kg2 {[%clk 0:00:00]}  Ng7 {[%clk 0:00:00]} 31. Nf3 {[%clk 0:00:00]}  Ne6 {[%clk 0:00:00]} 32. Bc3 {[%clk 0:00:00]}  f6 {[%clk 0:00:00]} 33. Qb2 {[%clk 0:00:00]}  Kf7 {[%clk 0:00:00]} 34. Nb3 {[%clk 0:00:00]}  Qc6 {[%clk 0:00:00]} 35. Na5 {[%clk 0:00:00]}  Qa8 {[%clk 0:00:00]} 36. Qb3 {[%clk 0:00:00]}  d4 {[%clk 0:00:00]} 37. exd4 {[%clk 0:00:00]}  exd4 {[%clk 0:00:00]} 38. Bd2 {[%clk 0:00:00]}  Ke7 {[%clk 0:00:00]} 39. Qd1 {[%clk 0:00:00]}  Qd5 {[%clk 0:00:00]} 40. Qe2 {[%clk 0:00:00]}  Kf7 {[%clk 0:00:00]} 41. Qe4 {[%clk 0:00:00]}  Qxe4 {[%clk 0:00:00]} 42. dxe4 {[%clk 0:00:00]}  Nb6 {[%clk 0:00:00]} 43. Nc6 {[%clk 0:00:00]}  Nc4 {[%clk 0:00:00]} 44. Bc1 {[%clk 0:00:00]}  d3 {[%clk 0:00:00]} 45. Nd2 {[%clk 0:00:00]}  Nc7 {[%clk 0:00:00]} 46. Nxc4 {[%clk 0:00:00]}  bxc4 {[%clk 0:00:00]} 47. Bd2 {[%clk 0:00:00]}  Nb5 {[%clk 0:00:00]} 48. a4 {[%clk 0:00:00]}  c3 {[%clk 0:00:00]} 49. Bxc3 {[%clk 0:00:00]}  Nxc3 {[%clk 0:00:00]} 50. Kf3 {[%clk 0:00:00]}  Nxa4 {[%clk 0:00:00]} 51. Ke3 {[%clk 0:00:00]}  Nb2 {[%clk 0:00:00]} 52. Kd2 {[%clk 0:00:00]}  Ke8 {[%clk 0:00:00]} 53. h4 {[%clk 0:00:00]}  Kd7 {[%clk 0:00:00]} 54. Nd4 {[%clk 0:00:00]}  Bxb4+ {[%clk 0:00:00]} 0-1


[Site "https://www.chess.com"]

[Event "Titled Tuesday Blitz August 16 Early 2022"]
[White "Sawyer, Bradley"]
[Black "Borgaonkar Akshay"]
[WhiteFideId "2023784"]
[BlackFideId "25639110"]
[WhiteElo "2172"]
[BlackElo "1755"]
[Result "0-1"]
[Round "02"]
[TimeControl "180+2"]
[Date "2022.08.18"]
[WhiteClock "0:00:00"]
[BlackClock "0:00:00"]

1. c4 {[%clk 0:00:00]}  Nf6 {[%clk 0:00:00]} 2. g3 {[%clk 0:00:00]}  g6 {[%clk 0:00:00]} 3. Bg2 {[%clk 0:00:00]}  Bg7 {[%clk 0:00:00]} 4. Nc3 {[%clk 0:00:00]}  O-O {[%clk 0:00:00]} 5. e4 {[%clk 0:00:00]}  d6 {[%clk 0:00:00]} 6. Nge2 {[%clk 0:00:00]}  c5 {[%clk 0:00:00]} 7. O-O {[%clk 0:00:00]}  Nc6 {[%clk 0:00:00]} 8. d3 {[%clk 0:00:00]}  e5 {[%clk 0:00:00]} 9. h3 {[%clk 0:00:00]}  Nd4 {[%clk 0:00:00]} 10. Rb1 {[%clk 0:00:00]}  Ne8 {[%clk 0:00:00]} 11. b4 {[%clk 0:00:00]}  f5 {[%clk 0:00:00]} 12. bxc5 {[%clk 0:00:00]}  dxc5 {[%clk 0:00:00]} 13. exf5 {[%clk 0:00:00]}  gxf5 {[%clk 0:00:00]} 14. Nxd4 {[%clk 0:00:00]}  cxd4 {[%clk 0:00:00]} 15. Nd5 {[%clk 0:00:00]}  Nf6 {[%clk 0:00:00]} 16. Nxf6+ {[%clk 0:00:00]}  Qxf6 {[%clk 0:00:00]} 17. Bxb7 {[%clk 0:00:00]}  Bxb7 {[%clk 0:00:00]} 18. Rxb7 {[%clk 0:00:00]}  e4 {[%clk 0:00:00]} 19. Bf4 {[%clk 0:00:00]}  Rae8 {[%clk 0:00:00]} 20. Qd2 {[%clk 0:00:00]}  Qc6 {[%clk 0:00:00]} 21. Rfb1 {[%clk 0:00:00]}  e3 {[%clk 0:00:00]} 22. fxe3 {[%clk 0:00:00]}  dxe3 {[%clk 0:00:00]} 23. Bxe3 {[%clk 0:00:00]}  Qf3 {[%clk 0:00:00]} 24. Rxg7+ {[%clk 0:00:00]}  Kxg7 {[%clk 0:00:00]} 25. Bf2 {[%clk 0:00:00]}  f4 {[%clk 0:00:00]} 0-1


[Site "https://www.chess.com"]

[Event "Titled Tuesday Blitz August 16 Early 2022"]
[White "Schmakel, Sam"]
[Black "Kakabayev, Mergen"]
[WhiteFideId "2039311"]
[BlackFideId "14002990"]
[WhiteElo "2356"]
[BlackElo "2302"]
[Result "1-0"]
[Round "02"]
[TimeControl "180+2"]
[Date "2022.08.18"]
[WhiteClock "0:00:00"]
[BlackClock "0:00:00"]

1. d4 {[%clk 0:00:00]}  d5 {[%clk 0:00:00]} 2. c4 {[%clk 0:00:00]}  c6 {[%clk 0:00:00]} 3. Nf3 {[%clk 0:00:00]}  Nf6 {[%clk 0:00:00]} 4. Nc3 {[%clk 0:00:00]}  e6 {[%clk 0:00:00]} 5. Bg5 {[%clk 0:00:00]}  dxc4 {[%clk 0:00:00]} 6. e4 {[%clk 0:00:00]}  b5 {[%clk 0:00:00]} 7. e5 {[%clk 0:00:00]}  h6 {[%clk 0:00:00]} 8. Bh4 {[%clk 0:00:00]}  g5 {[%clk 0:00:00]} 9. Bg3 {[%clk 0:00:00]}  Nd5 {[%clk 0:00:00]} 10. Be2 {[%clk 0:00:00]}  Nd7 {[%clk 0:00:00]} 11. O-O {[%clk 0:00:00]}  Bb7 {[%clk 0:00:00]} 12. a4 {[%clk 0:00:00]}  a6 {[%clk 0:00:00]} 13. Qd2 {[%clk 0:00:00]}  c5 {[%clk 0:00:00]} 14. axb5 {[%clk 0:00:00]}  Nxc3 {[%clk 0:00:00]} 15. bxc3 {[%clk 0:00:00]}  axb5 {[%clk 0:00:00]} 16. Rab1 {[%clk 0:00:00]}  Bc6 {[%clk 0:00:00]} 17. Qc2 {[%clk 0:00:00]}  Rb8 {[%clk 0:00:00]} 18. Rfd1 {[%clk 0:00:00]}  Qc8 {[%clk 0:00:00]} 19. Nd2 {[%clk 0:00:00]}  Be7 {[%clk 0:00:00]} 20. Ne4 {[%clk 0:00:00]}  cxd4 {[%clk 0:00:00]} 21. cxd4 {[%clk 0:00:00]}  Nb6 {[%clk 0:00:00]} 22. Nd6+ {[%clk 0:00:00]}  Bxd6 {[%clk 0:00:00]} 23. exd6 {[%clk 0:00:00]}  Kd7 {[%clk 0:00:00]} 24. Be5 {[%clk 0:00:00]}  Rg8 {[%clk 0:00:00]} 25. Qh7 {[%clk 0:00:00]}  Qf8 {[%clk 0:00:00]} 26. Bh5 {[%clk 0:00:00]}  Ke8 {[%clk 0:00:00]} 27. d5 {[%clk 0:00:00]}  Bxd5 {[%clk 0:00:00]} 28. d7+ {[%clk 0:00:00]}  Nxd7 {[%clk 0:00:00]} 29. Bxb8 {[%clk 0:00:00]}  Nxb8 {[%clk 0:00:00]} 30. Rxb5 {[%clk 0:00:00]}  Nd7 {[%clk 0:00:00]} 31. Rdb1 {[%clk 0:00:00]}  Ke7 {[%clk 0:00:00]} 32. Qc2 {[%clk 0:00:00]}  Qa8 {[%clk 0:00:00]} 33. g3 {[%clk 0:00:00]}  Ne5 {[%clk 0:00:00]} 34. Qc3 {[%clk 0:00:00]}  f6 {[%clk 0:00:00]} 35. Ra1 {[%clk 0:00:00]}  Qc6 {[%clk 0:00:00]} 36. Ra7+ {[%clk 0:00:00]}  Nd7 {[%clk 0:00:00]} 37. Rbb7 {[%clk 0:00:00]}  Rd8 {[%clk 0:00:00]} 38. Bd1 {[%clk 0:00:00]}  Qd6 {[%clk 0:00:00]} 39. Rc7 {[%clk 0:00:00]}  e5 {[%clk 0:00:00]} 40. Bg4 {[%clk 0:00:00]}  Be6 {[%clk 0:00:00]} 41. Bxe6 {[%clk 0:00:00]}  Qxe6 {[%clk 0:00:00]} 42. Rxc4 {[%clk 0:00:00]}  Rb8 {[%clk 0:00:00]} 43. Rcc7 {[%clk 0:00:00]}  Rb1+ {[%clk 0:00:00]} 44. Kg2 {[%clk 0:00:00]}  Qd5+ {[%clk 0:00:00]} 45. Kh3 {[%clk 0:00:00]}  Qe6+ {[%clk 0:00:00]} 46. g4 {[%clk 0:00:00]}  Rd1 {[%clk 0:00:00]} 47. Qc2 {[%clk 0:00:00]}  Rd4 {[%clk 0:00:00]} 48. Qh7+ {[%clk 0:00:00]}  Kd8 {[%clk 0:00:00]} 49. Qh8+ {[%clk 0:00:00]}  Ke7 {[%clk 0:00:00]} 50. Qg7+ {[%clk 0:00:00]}  Kd8 {[%clk 0:00:00]} 51. Rxd7+ {[%clk 0:00:00]}  Rxd7 {[%clk 0:00:00]} 52. Qf8+ {[%clk 0:00:00]} 1-0


[Site "https://www.chess.com"]

[Event "Titled Tuesday Blitz August 16 Early 2022"]
[White "Sharapov, Evgeny"]
[Black "Matveeva, Olga"]
[WhiteFideId "14103133"]
[BlackFideId "24107018"]
[WhiteElo "2367"]
[BlackElo "2052"]
[Result "1-0"]
[Round "02"]
[TimeControl "180+2"]
[Date "2022.08.18"]
[WhiteClock "0:00:00"]
[BlackClock "0:00:00"]

1. e4 {[%clk 0:00:00]}  e6 {[%clk 0:00:00]} 2. d4 {[%clk 0:00:00]}  d5 {[%clk 0:00:00]} 3. Nc3 {[%clk 0:00:00]}  Nf6 {[%clk 0:00:00]} 4. Bg5 {[%clk 0:00:00]}  Bb4 {[%clk 0:00:00]} 5. e5 {[%clk 0:00:00]}  h6 {[%clk 0:00:00]} 6. Bd2 {[%clk 0:00:00]}  Bxc3 {[%clk 0:00:00]} 7. bxc3 {[%clk 0:00:00]}  Ne4 {[%clk 0:00:00]} 8. Bc1 {[%clk 0:00:00]}  c5 {[%clk 0:00:00]} 9. Qg4 {[%clk 0:00:00]}  g6 {[%clk 0:00:00]} 10. Bd3 {[%clk 0:00:00]}  cxd4 {[%clk 0:00:00]} 11. cxd4 {[%clk 0:00:00]}  Qa5+ {[%clk 0:00:00]} 12. Kf1 {[%clk 0:00:00]}  Bd7 {[%clk 0:00:00]} 13. Ne2 {[%clk 0:00:00]}  Bb5 {[%clk 0:00:00]} 14. f3 {[%clk 0:00:00]}  Bxd3 {[%clk 0:00:00]} 15. cxd3 {[%clk 0:00:00]}  Nd2+ {[%clk 0:00:00]} 16. Kf2 {[%clk 0:00:00]}  Nc6 {[%clk 0:00:00]} 17. Bxd2 {[%clk 0:00:00]}  Qxd2 {[%clk 0:00:00]} 18. Rhd1 {[%clk 0:00:00]}  Qg5 {[%clk 0:00:00]} 19. Qxg5 {[%clk 0:00:00]}  hxg5 {[%clk 0:00:00]} 20. h3 {[%clk 0:00:00]}  Kd7 {[%clk 0:00:00]} 21. Rab1 {[%clk 0:00:00]}  b6 {[%clk 0:00:00]} 22. Ke3 {[%clk 0:00:00]}  Rac8 {[%clk 0:00:00]} 23. Rdc1 {[%clk 0:00:00]}  Na5 {[%clk 0:00:00]} 24. Nc3 {[%clk 0:00:00]}  Nc6 {[%clk 0:00:00]} 25. Nb5 {[%clk 0:00:00]}  Rh4 {[%clk 0:00:00]} 26. Rc2 {[%clk 0:00:00]}  a6 {[%clk 0:00:00]} 27. Nd6 {[%clk 0:00:00]}  Rc7 {[%clk 0:00:00]} 28. Rbc1 {[%clk 0:00:00]}  f6 {[%clk 0:00:00]} 29. Nf7 {[%clk 0:00:00]}  f5 {[%clk 0:00:00]} 30. Nxg5 {[%clk 0:00:00]}  Rc8 {[%clk 0:00:00]} 31. Nxe6 {[%clk 0:00:00]}  Kxe6 {[%clk 0:00:00]} 32. Rxc6+ {[%clk 0:00:00]}  Rxc6 {[%clk 0:00:00]} 33. Rxc6+ {[%clk 0:00:00]}  Kd7 {[%clk 0:00:00]} 34. Rxb6 {[%clk 0:00:00]} 1-0


[Site "https://www.chess.com"]